Cogmind - Beta 11.1 @@@ ROGUE MODE // 2022.11.06 @ 00:30:25 Player: BRiNK Result: Self-destructed Performance ------------- Evolutions (2) 1000 Regions Visited (4) 800 Robots Destroyed (22) 110 Value Destroyed (453) 453 Prototype IDs (0) 0 Alien Tech Used (0) 0 Bonus (-28) -28 TOTAL SCORE: 2335 Bonus ------- Friendly Fire -28 Cogmind --------- Core Integrity 40/550 Matter 55/300 Energy 75/100 System Corruption 0% Temperature Warning (359) Movement Core (200) Ox3 Location -8/Materials Parts ------- > --- POWER (1) -------- (None) > --- PROPULSION (4) --- (None) > --- UTILITY (3) ------ Medium Storage Unit > --- WEAPON (3) ------- Medium Laser > --- INVENTORY (10) --- Signal Interpreter Peak State ------------ > --- POWER ------------ Light Angular Momentum Engine > --- PROPULSION ------- Light Treads Light Treads Carbon-fiber Leg Carbon-fiber Leg > --- UTILITY ---------- Medium Storage Unit Heavy Armor Plating > --- WEAPON ----------- Medium Laser Grenade Launcher Rocket Launcher > --- INVENTORY -------- Signal Interpreter [Rating: 24] Favorites ----------- Power Light Ion Engine Engine Light Ion Engine Propulsion Light Treads Treads Light Treads Leg Carbon-fiber Leg Wheel Compact Wheel Utility Small Storage Unit Storage Small Storage Unit Protection Heavy Armor Plating Weapon Medium Laser Energy Gun Medium Laser Ballistic Gun Assault Rifle Launcher Grenade Launcher Build | -11 -10 -10 -9 -8 ------- Run | Scr Mat Min Mat Mat Slots Evolved 4 | . . . 2 2 Power . | . . . . . Propulsion 2 | . . . 2 . Utility 1 | . . . . 1 Weapon 1 | . . . . 1 Parts Attached 27 | 7 . 1 9 10 Power 5 | 1 . . 2 2 Engine 5 | 1 . . 2 2 Core . | . . . . . Reactor . | . . . . . Propulsion 7 | 2 . . 4 1 Treads 3 | . . . 2 1 Leg 2 | . . . 2 . Wheel 2 | 2 . . . . Hover . | . . . . . Flight . | . . . . . Utility 4 | 2 . . 1 1 Device . | . . . . . Storage 3 | 2 . . 1 . Processor . | . . . . . Hackware . | . . . . . Protection 1 | . . . . 1 Artifact . | . . . . . Weapon 11 | 2 . 1 2 6 Energy Gun 4 | 1 . . . 3 Energy Cannon . | . . . . . Ballistic Gun 3 | 1 . . 2 . Ballistic Cannon . | . . . . . Launcher 4 | . . 1 . 3 Special Weapon . | . . . . . Impact Weapon . | . . . . . Slashing Weapon . | . . . . . Piercing Weapon . | . . . . . Special Melee Weapon . | . . . . . Unidentified Prototypes . | . . . . . Parts Lost 8 | . . . 1 7 Power 1 | . . . . 1 Propulsion 2 | . . . . 2 Utility 1 | . . . . 1 Weapon 4 | . . . 1 3 Highest Loss Streak 7 | . . . 1 7 To Critical Strikes . | . . . . . Average Slot Usage (%) 93 | . 100 100 98 85 Engine 11 | . 14 14 11 8 Treads 12 | . . . 22 17 Leg 7 | . . . 4 15 Wheel 13 | . 28 28 16 . Storage 18 | . 28 28 21 9 Protection 3 | . . . . 8 Energy Gun 10 | . 14 14 4 11 Ballistic Gun 5 | . 14 4 12 . Launcher 9 | . . 10 4 14 Naked Turns . | . . . . . Heaviest Build 43 | 17 17 18 28 43 Greatest Support 40 | 32 32 32 40 40 Greatest Overweight (x) 1 | . . . . 1 Average Overweight (x) . | . . . . . Largest Inventory Capacity 10 | 8 8 8 10 10 Average Capacity 8 | 7 8 8 9 10 Most Carried 9 | 2 5 8 9 7 Average Carried 4 | . 3 6 6 2 Final Capacity 10 | 8 8 8 10 10 Final Carried 8 | 1 5 8 7 1 Class Distribution -------------------- 89% | Mutant 10% | Scavenger-Tank Dominant Class ---------------- Mutant | -10/Materials Mutant | -10/Mines Mutant | -9/Materials Mutant | -8/Materials Resources | -11 -10 -10 -9 -8 ----------- Run | Scr Mat Min Mat Mat Matter Collected 589 | 272 25 10 226 56 Remotely . | . . . . . Salvage Created 502 | 60 30 . 201 211 Parts 33 | 1 1 . 19 12 Haulers Intercepted . | . . . . . Recyclers Shooed . | . . . . . Parts Field Recycled . | . . . . . Retrieved Matter . | . . . . . Parts Self-Destructed . | . . . . . Prevented . | . . . . . Kills | -11 -10 -10 -9 -8 ------- Run | Scr Mat Min Mat Mat Combat Hostiles Destroyed 14 | . 1 . 8 5 Guns 9 | . 1 . 5 3 AOE 5 | . . . 3 2 Classes Destroyed 6 | 1 1 . 3 1 Worker 5 | . . . 2 3 Builder 2 | . . . . 2 Recycler 1 | 1 . . . . Swarmer 6 | . . . 6 . Grunt 6 | . 1 . . 5 Sentry 2 | . . . 2 . Best Kill Streak 7 | 1 1 . 4 7 Combat Bots Only 3 | . 1 . 3 3 Max Kills in Single Turn 3 | 1 1 . 2 3 Gunslinging . | . . . . . Exploded 2 | . . . 2 1 Melee . | . . . . . Uniques/NPCs Destroyed . | . . . . . Combat | -11 -10 -10 -9 -8 -------- Run | Scr Mat Min Mat Mat Damage Taken 1734 | . 56 . 538 1140 Core 600 | . 11 . 79 510 Absorbed by Shields . | . . . . . Core Remaining (%) 91 | 100 . 95 80 . Volleys Fired 52 | 7 5 1 19 20 Largest 3 | 2 2 2 2 3 Hottest 148 | 70 70 80 80 148 Shots Fired 109 | 11 10 2 38 48 Gun 91 | 11 10 1 35 34 Cannon . | . . . . . Launcher 18 | . . 1 3 14 Special . | . . . . . Kinetic 41 | 4 5 . 32 . Thermal 50 | 7 5 1 3 34 Explosive 18 | . . 1 3 14 Electromagnetic . | . . . . . Robot Hit Streak 14 | 6 2 4 14 8 Robot Miss Streak 4 | 1 2 . 4 4 Penetration Max . | . . . . . Secondary Targets 1 | . . . 1 . Max Gunslinging Chain 1 | . . . 1 . Shots Hit Robots 61 | 8 5 2 21 25 Core Hits 45 | 2 2 . 12 29 Critical Kills . | . . . . . Critical Parts Destroyed . | . . . . . Critical Strikes 4 | . . 1 . 3 Burn 4 | . . 1 . 3 Melee Attacks . | . . . . . Impact . | . . . . . Slashing . | . . . . . Piercing . | . . . . . Sneak Attacks . | . . . . . Combat Hostiles . | . . . . . Follow-up Attacks . | . . . . . Damage Inflicted 1772 | 112 90 77 399 1094 Guns 757 | 112 90 13 272 270 Cannons . | . . . . . Explosions 1015 | . . 64 127 824 Melee . | . . . . . Ramming . | . . . . . Kinetic 325 | 26 40 . 259 . Thermal 432 | 86 50 13 13 270 Explosive 1015 | . . 64 127 824 Electromagnetic . | . . . . . Impact . | . . . . . Slashing . | . . . . . Piercing . | . . . . . Highest Corruption . | . . . . . Average Corruption . | . . . . . Corruption Purged . | . . . . . Corruption Blocked . | . . . . . Overload Shots . | . . . . . Overflow Damage 14 | . . . . 14 Projectiles . | . . . . . Explosions 14 | . . . . 14 Melee . | . . . . . Knockbacks . | . . . . . Impact . | . . . . . Kinetic . | . . . . . Secondary . | . . . . . Self-Inflicted Damage 102 | . . . 6 96 Shots 6 | . . . 1 5 Rammed . | . . . . . Targets Rammed . | . . . . . Kicked . | . . . . . Crushed . | . . . . . Highest Temperature 976 | 37 55 18 27 976 Average Temperature 318 | 18 30 12 13 467 Received Heat Transfer 576 | . 30 . 123 423 Effects 40 | . . . . 40 Shutdowns 4 | . . . . 4 Energy Bleed 2 | . . . . 2 Interference 4 | . . . . 4 Matter Decay 4 | . . . . 4 Short Circuit 2 | . . . . 2 Damage (minor) 4 | . . . . 4 Damage (major) 16 | . . . . 16 Damage (core) 4 | . . . . 4 Siege Activations . | . . . . . Robots Corrupted . | . . . . . Combat Hostiles . | . . . . . Parts Fried . | . . . . . Impact Corruptions . | . . . . . Robots Melted . | . . . . . Combat Hostiles . | . . . . . Parts Melted 1 | . . . . 1 Heat Transferred 1517 | 259 148 111 37 962 Parts Sabotaged . | . . . . . Parts Stolen . | . . . . . Parts Stripped . | . . . . . Power Chain Reactions . | . . . . . Missiles Intercepted . | . . . . . Alert | -11 -10 -10 -9 -8 ------- Run | Scr Mat Min Mat Mat Peak Influence 364 | 5 54 51 364 194 Initial 149 | . 3 21 19 149 Average 95 | 3 18 25 145 143 Maximum Alert Level 1 | . . . 1 . Low Security (%) 89 | 100 100 100 59 100 Level 1 10 | . . . 40 . Level 2 . | . . . . . Level 3 . | . . . . . Level 4 . | . . . . . Level 5 . | . . . . . High Security . | . . . . . Max Security . | . . . . . Squads Dispatched 4 | . 1 1 1 1 Investigation 2 | . . 1 1 . Extermination . | . . . . . Reinforcement 2 | . 1 . . 1 Assault . | . . . . . Garrison . | . . . . . Intercept . | . . . . . Searches Triggered . | . . . . . Construction Impeded 1 | . . . . 1 Haulers Reinforced . | . . . . . Active Scanning Responses . | . . . . . Cargo Convoy Interrupts . | . . . . . Stealth | -11 -10 -10 -9 -8 --------- Run | Scr Mat Min Mat Mat Distress Signals 1 | . . . 1 . Communications Jammed . | . . . . . Distress Signals . | . . . . . Times Spotted 29 | . 1 1 17 10 Peak Tracking Total 7 | . 2 1 7 5 Tactical Retreats . | . . . . . Traps | -11 -10 -10 -9 -8 ------- Run | Scr Mat Min Mat Mat Traps Triggered . | . . . . . Indirectly . | . . . . . Trap Hack Attempts . | . . . . . Triggered . | . . . . . Disarmed . | . . . . . Reprogrammed 4 | . . . 4 . Reused 1 | . . . 1 . Traps Extracted . | . . . . . Installed . | . . . . . Triggered 1 | . . . 1 . Machines | -11 -10 -10 -9 -8 ---------- Run | Scr Mat Min Mat Mat Machines Disabled 1 | . . . 1 . Max in Single Turn 1 | . . . 1 . Machines Sabotaged . | . . . . . Garrisons Compromised . | . . . . . Overloaded Fab Kills . | . . . . . Hacking | -11 -10 -10 -9 -8 --------- Run | Scr Mat Min Mat Mat Machines Accessed 10 | . 3 1 6 . Terminals 8 | . 3 . 5 . Fabricators . | . . . . . Repair Stations . | . . . . . Recycling Units . | . . . . . Scanalyzers 1 | . . . 1 . Garrison Access . | . . . . . Total Hacks 28 | . 9 1 18 . Successful 18 | . 5 1 12 . Failed 10 | . 4 . 6 . Catastrophic 1 | . 1 . . . Database Lockouts . | . . . . . Manual 13 | . 3 . 10 . Terminals 25 | . 9 . 16 . Fabricators . | . . . . . Repair Stations . | . . . . . Recycling Units . | . . . . . Scanalyzers 2 | . . . 2 . Garrison Access . | . . . . . Terminal Hacks 13 | . 4 1 8 . Record 2 | . . . 2 . Open Door 1 | . . 1 . . Reprogram Traps 1 | . . . 1 . Maintenance Status 1 | . . . 1 . Patrol Status 1 | . 1 . . . Investigation Status 1 | . 1 . . . Zone Layout 6 | . 2 . 4 . Fabricator Hacks . | . . . . . Repair Station Hacks . | . . . . . Recycling Unit Hacks . | . . . . . Scanalyzer 2 | . . . 2 . Insert Component 1 | . . . 1 . Analyze 1 | . . . 1 . Garrison Access Hacks . | . . . . . Unauthorized Hacks 3 | . 1 . 2 . Terminals 3 | . 1 . 2 . Track 3 | . 1 . 2 . Fabricators . | . . . . . Repair Stations . | . . . . . Recycling Units . | . . . . . Scanalyzers . | . . . . . Garrison Access . | . . . . . Data Cores Recovered . | . . . . . Used . | . . . . . Hacking Detections 7 | . 3 . 4 . Full Trace Events 3 | . 1 . 2 . Feedback Events . | . . . . . Feedback Blocked . | . . . . . Robot Schematics Acquired . | . . . . . Robots Built . | . . . . . Authchips . | . . . . . Time . | . . . . . Total Robot Build Rating . | . . . . . Part Schematics Acquired 1 | . . . 1 . Parts Built . | . . . . . Authchips . | . . . . . Time . | . . . . . Total Part Build Rating . | . . . . . Parts Repaired . | . . . . . Time . | . . . . . Parts Recycled . | . . . . . Recycled Matter . | . . . . . Retrieved Matter . | . . . . . Retrieved Components . | . . . . . Parts Scanalyzed 1 | . . . 1 . Part Schematics Acquired 1 | . . . 1 . Parts Damaged . | . . . . . Bothacking | -11 -10 -10 -9 -8 ------------ Run | Scr Mat Min Mat Mat Used RIF Installer . | . . . . . Robots Hacked . | . . . . . Non-combat . | . . . . . Combat . | . . . . . Robot Hacks Applied . | . . . . . Relay Couplers Released . | . . . . . Fabnet Peak Effective % . | . . . . . Robots Rewired . | . . . . . Allies Hacked . | . . . . . Hacks Repelled . | . . . . . Allies | -11 -10 -10 -9 -8 -------- Run | Scr Mat Min Mat Mat Total Allies . | . . . . . Largest Group . | . . . . . Highest-Rated Group . | . . . . . Highest-Rated Ally . | . . . . . Total Orders . | . . . . . Ally Attacks . | . . . . . Total Damage . | . . . . . Kills . | . . . . . Allies Corrupted . | . . . . . Allies Melted . | . . . . . Intel | -11 -10 -10 -9 -8 ------- Run | Scr Mat Min Mat Mat Robot Analysis Total . | . . . . . Derelict Logs Recovered . | . . . . . Drone Launches . | . . . . . Drone Recoveries . | . . . . . Exploration | -11 -10 -10 -9 -8 ------------- Run | Scr Mat Min Mat Mat Turns Passed 1359 | 128 126 276 344 485 Spaces Moved 904 | 98 108 270 177 251 Core 5 | 5 . . . . Treads 392 | . . . 141 251 Legs 36 | . . . 36 . Wheels 471 | 93 108 270 . . Hover . | . . . . . Flight . | . . . . . Fastest Speed 50 | 50 100 100 120 160 Average Speed 127 | 97 100 100 151 162 Slowest Speed 240 | 100 100 100 160 240 Overloaded Moves . | . . . . . Propulsion Burnouts . | . . . . . Robots Hopped . | . . . . . Cave-ins Triggered . | . . . . . Exploration Rate (%) 29 | 5 30 74 21 18 Regions Visited 4 Branch Regions 1 Pre-discovered Areas . | . . . . . Known Exits Taken . | . . . . . Unknown Exits Taken 4 | 1 1 1 1 . Scrap Searched 1 | . . 1 . . Spaces Dug . | . . . . . Terrain Destroyed 99 | . . 10 12 77 Melee . | . . . . . Projectile . | . . . . . AOE 99 | . . 10 12 77 Terrain Rammed . | . . . . . Walls Destroyed . | . . . . . Machines Disabled . | . . . . . Actions | -11 -10 -10 -9 -8 --------- Run | Scr Mat Min Mat Mat Total 1015 | 119 116 273 215 292 Wait . | . . . . . Move 900 | 97 107 269 176 251 Hop . | . . . . . Pick Up 23 | 8 4 2 6 3 Fast Attach . | . . . . . Attach 21 | 7 . . 6 8 Detach 1 | . . . . 1 Swap 6 | . . 1 3 2 Drop 12 | . . . 5 7 Fire 52 | 7 5 1 19 20 Melee . | . . . . . Ram . | . . . . . Kick . | . . . . . Crush . | . . . . . Escape Stasis . | . . . . . Rewire . | . . . . . Trap . | . . . . . Miscellaneous . | . . . . . Route ------- -11/Scrapyard -10/Materials (discovered 2 exits: *Min x2) -10/Mines -9/Materials -8/Materials History --------- Turn | Location | Event 47 | -11/Scrapyard | Discovered new exit (range 15) 129 | -11/Scrapyard | Entered Materials 129 | -10/Materials | Discovered new exit (range 8) 219 | -10/Materials | Discovered new exit (range 9) 255 | -10/Materials | Entered Mines 309 | -10/Mines | Build established: Mutant 310 | -10/Mines | Received a Rocket Launcher from a helpful Derelict 461 | -10/Mines | Met a Derelict shopkeep closing up shop 508 | -10/Mines | Discovered new exit (range 11) 531 | -10/Mines | Entered Materials 531 | -9/Materials | Evolved 2 slots: Propulsion x2 858 | -9/Materials | Discovered new exit (range 12) 875 | -9/Materials | Entered another Materials area 875 | -8/Materials | Evolved 2 slots: Utility x1, Weapon x1 1319 | -8/Materials | Core integrity fell below 50% 1353 | -8/Materials | Core integrity fell below 20% 1360 | -8/Materials | Self-destructed Last Messages --------------- 01324_ R-06 Scavenger collects Terrain Scan Processor. 01325_ Power failure, Lgt. Ion Engine shutdown. 01326_ Broken Grenade Launcher destroyed. 01327_ Overheating: Core damaged (-66). 01328_ Overheating: Lgt. Treads damaged (-32). 01328_ Overheating: Hvy. Armor Plating damaged (-29). 01328_ Overheating: Rocket Launcher damaged (-3). 01335_ Power failure, Lgt. Ion Engine shutdown. 01340_ Hvy. Armor Plating destroyed. 01343_ Lgt. Ion Engine destroyed. 01344_ G-47 Trooper suffers critical hit (Burn). 01347_ Lgt. Treads destroyed. 01348_ G-47 Trooper suffers critical hit (Burn). 01348_ Lgt. Nuclear Core melted. 01348_ G-47 Trooper destroyed. 01350_ Rocket Launcher destroyed. 01350_ Lgt. Treads destroyed. 01355_ K-01 Serf collects debris. 01358_ Particle Gun destroyed. 01358_ K-01 Serf collects debris. Map ----- +----------------------------------------------------+ | ?????????????????????????????????????????????????? | | ?????????????????????????????????????????????????? | | ?????????????????????????????????????????????????? | | ?????????????????????????????????????????????????? | | ?????????????????????????????????????????????????? | | ?????????????????????????????????????????????????? | | ?????????????????????????????????????????????????? | | ?????????????????H???????????????????????????????? | | ?????????????????????????????????????????????????? | | ?????????????????????????????????????????????????? | | ?????????????????????????????????????????????????? | | ?????????????????????????????????????????????????? | | ?????????????????????????????????????????????????? | | ?????????????????????????????????????????????????? | | ?????????????????????????????????????????????????? | | ?????????????????????????????????????????????????? | | ?????????????????????????????????????????????????? | | ?????????????????????????????????????????????????? | | ?????????????????????????????????????????????????? | | ?????????????????????????????????????????????????? | | ?????????????????????????????????????????????????? | | ???????#########?????????????????????????????????? | | ???????# # ???????????????????????????????? | | ???????# # ################??????????????? | | ######?# # g ###????????????? | | #?# # @ % !! #????????? | | #?# # gk ! ????????? | | #?# ############### ! ????????? | | !! #?# = #?????????????# ! ?????????? | | !! #?# #?????????????# ! ?????????? | | #?# ###########?### % !!###??????????? | | #?# * # ### !####????????????? | | #?# ## + % #??????????????? | | ############ #### """ ### #??????????????? | | # """"" #?# = ##?????????????? | | + """"" #?# !# #?????????????? | | # """"" #?# ###?????????????? | | +################ """ #?# %% ?????????????? | | #??????????#! #?# ???????????? | | """ #??????????# ## ??????????? | | """ #??????????########### #### ????????? | | """ #????????????????????# # % #??? #??????? | | #????????????????????## ?????#??????? | | """ #????????????????????? # !!!???????????? | | """ #????????????????????## # !!!#??????????? | | """ #????????????????????? !!!#??????????? | | #????????????????????? #??????????? | | ######????????????????????? #! +??????????? | | ?????????????????????????? ### #??????????? | | ?????????????????????????? ??? [ #??????????? | +----------------------------------------------------+ Best States ------------- Heat Dissipation 31 Energy Generation 18 Energy Capacity 265 Matter Stores 300 Matter Capacity 300 Sight Range 16 Terrain Scan Density 10 Armor Coverage 600 Evasion (%) 55 Recoil Reduction 2 Item Schematics ----------------- Hvy. Armor Plating | -9/Materials | Scanalyzed Robot Schematics ------------------ None Fabricated ------------ Nothing Alien Tech Used ----------------- None Achievements -------------- root@ Challenges ------------ None Game ------ Seed DefenseThrusterLaser Manual? 0 Play Time 00:23:13 Cumulative 10.0 hours Start 2022.11.06 @ 00:08:58 End 2022.11.06 @ 00:30:25 Sessions 1 Manual Loads 0 Difficulty Rogue Special Mode None Game No. 15 Rogue 15 Adventurer 0 Explorer 0 Win Type - Total 0 Types 0/0/0/0/0/0/0/0/0 Lore% 16 Gallery% 13 Achievement% 12 Wizard Run 0 Options --------- ASCII 0 Keyboard 0 Movement Mouse Keybinds 0 Fullscreen 1 Font 24/Crisp Map View 76x50 Tactical HUD 1 Map Filters NONE Filters NONE Steam 1 RUN: fbb9e9f5-fbd2-4dc6-8183-32d7b8ed7ac1